{"text_format":"1","workbook":"xlsx","n_sheets":2,"sheets":["Tabelle1","Tabelle2"],"not_rendered":{"charts":0,"images":1,"macros":1,"external_links":0,"defined_names":0,"comments":0,"pivot_tables":0},"unopened":[],"bounds":{"document_bytes":16777216,"sheet_cells":100000,"rows_first":2000,"rows_last":500,"rows_between":2000,"halvings":0,"cell_chars":16384,"cell_head_chars":4096},"cells_cut":0,"cells_raw":0,"read":"whole","date_system":"1900"}

{"sheet":"Tabelle1","index":0,"n_rows":15,"n_cols":8,"rows_kept":15,"cut":false,"hidden":false,"merged":[]}
[]
["Name","WKN","ISIN","lfd. J.","1J.","3J.","5J.","10J."]
["iShares Core MSCI World UCITS ETF USD (Acc)","A0RPWH","IE00B4L5Y983",{"$f":"IFERROR(MID(VLOOKUP($C3,Tabelle2!$C:$D,2,FALSE),FIND(\"#\",SUBSTITUTE(VLOOKUP($C3,Tabelle2!$C:$D,2,FALSE),\"\"\">\",\"#\",IF(ISERROR(SEARCH(\"EUR\",$A3)),2,1)))+2,FIND(\"%\",MID(VLOOKUP($C3,Tabelle2!$C:$D,2,FALSE),FIND(\"#\",SUBSTITUTE(VLOOKUP($C3,Tabelle2!$C:$D,2,FALSE),\"\"\">\",\"#\",IF(ISERROR(SEARCH(\"EUR\",$A3)),2,1)))+2,10))-1)/100,\"\")","v":0.10529999999999999},{"$f":"IFERROR(MID(VLOOKUP($C3,Tabelle2!$C:$D,2,FALSE),FIND(\"#\",SUBSTITUTE(VLOOKUP($C3,Tabelle2!$C:$D,2,FALSE),\"\"\">\",\"#\",IF(ISERROR(SEARCH(\"EUR\",$A3)),5,3)))+2,FIND(\"%\",MID(VLOOKUP($C3,Tabelle2!$C:$D,2,FALSE),FIND(\"#\",SUBSTITUTE(VLOOKUP($C3,Tabelle2!$C:$D,2,FALSE),\"\"\">\",\"#\",IF(ISERROR(SEARCH(\"EUR\",$A3)),5,3)))+2,10))-1)/100,\"\")","v":9.820000000000001E-2},{"$f":"IFERROR(MID(VLOOKUP($C3,Tabelle2!$C:$D,2,FALSE),FIND(\"#\",SUBSTITUTE(VLOOKUP($C3,Tabelle2!$C:$D,2,FALSE),\"\"\">\",\"#\",IF(ISERROR(SEARCH(\"EUR\",$A3)),8,5)))+2,FIND(\"%\",MID(VLOOKUP($C3,Tabelle2!$C:$D,2,FALSE),FIND(\"#\",SUBSTITUTE(VLOOKUP($C3,Tabelle2!$C:$D,2,FALSE),\"\"\">\",\"#\",IF(ISERROR(SEARCH(\"EUR\",$A3)),8,5)))+2,10))-1)/100,\"\")","v":0.4632},{"$f":"IFERROR(MID(VLOOKUP($C3,Tabelle2!$C:$D,2,FALSE),FIND(\"#\",SUBSTITUTE(VLOOKUP($C3,Tabelle2!$C:$D,2,FALSE),\"\"\">\",\"#\",IF(ISERROR(SEARCH(\"EUR\",$A3)),11,7)))+2,FIND(\"%\",MID(VLOOKUP($C3,Tabelle2!$C:$D,2,FALSE),FIND(\"#\",SUBSTITUTE(VLOOKUP($C3,Tabelle2!$C:$D,2,FALSE),\"\"\">\",\"#\",IF(ISERROR(SEARCH(\"EUR\",$A3)),11,7)))+2,11))-1)/100,\"\")","v":0.67390000000000005},{"$f":"IFERROR(MID(VLOOKUP($C3,Tabelle2!$C:$D,2,FALSE),FIND(\"#\",SUBSTITUTE(VLOOKUP($C3,Tabelle2!$C:$D,2,FALSE),\"\"\">\",\"#\",IF(ISERROR(SEARCH(\"EUR\",$A3)),14,9)))+2,FIND(\"%\",MID(VLOOKUP($C3,Tabelle2!$C:$D,2,FALSE),FIND(\"#\",SUBSTITUTE(VLOOKUP($C3,Tabelle2!$C:$D,2,FALSE),\"\"\">\",\"#\",IF(ISERROR(SEARCH(\"EUR\",$A3)),14,9)))+2,11))-1)/100,\"\")","v":""}]
["ComStage MSCI World TRN UCITS ETF","ETF110","LU0392494562",{"$f":"IFERROR(MID(VLOOKUP($C4,Tabelle2!$C:$D,2,FALSE),FIND(\"#\",SUBSTITUTE(VLOOKUP($C4,Tabelle2!$C:$D,2,FALSE),\"\"\">\",\"#\",IF(ISERROR(SEARCH(\"EUR\",$A4)),2,1)))+2,FIND(\"%\",MID(VLOOKUP($C4,Tabelle2!$C:$D,2,FALSE),FIND(\"#\",SUBSTITUTE(VLOOKUP($C4,Tabelle2!$C:$D,2,FALSE),\"\"\">\",\"#\",IF(ISERROR(SEARCH(\"EUR\",$A4)),2,1)))+2,10))-1)/100,\"\")","v":0.11349999999999999},{"$f":"IFERROR(MID(VLOOKUP($C4,Tabelle2!$C:$D,2,FALSE),FIND(\"#\",SUBSTITUTE(VLOOKUP($C4,Tabelle2!$C:$D,2,FALSE),\"\"\">\",\"#\",IF(ISERROR(SEARCH(\"EUR\",$A4)),5,3)))+2,FIND(\"%\",MID(VLOOKUP($C4,Tabelle2!$C:$D,2,FALSE),FIND(\"#\",SUBSTITUTE(VLOOKUP($C4,Tabelle2!$C:$D,2,FALSE),\"\"\">\",\"#\",IF(ISERROR(SEARCH(\"EUR\",$A4)),5,3)))+2,10))-1)/100,\"\")","v":9.9100000000000008E-2},{"$f":"IFERROR(MID(VLOOKUP($C4,Tabelle2!$C:$D,2,FALSE),FIND(\"#\",SUBSTITUTE(VLOOKUP($C4,Tabelle2!$C:$D,2,FALSE),\"\"\">\",\"#\",IF(ISERROR(SEARCH(\"EUR\",$A4)),8,5)))+2,FIND(\"%\",MID(VLOOKUP($C4,Tabelle2!$C:$D,2,FALSE),FIND(\"#\",SUBSTITUTE(VLOOKUP($C4,Tabelle2!$C:$D,2,FALSE),\"\"\">\",\"#\",IF(ISERROR(SEARCH(\"EUR\",$A4)),8,5)))+2,10))-1)/100,\"\")","v":0.46200000000000002},{"$f":"IFERROR(MID(VLOOKUP($C4,Tabelle2!$C:$D,2,FALSE),FIND(\"#\",SUBSTITUTE(VLOOKUP($C4,Tabelle2!$C:$D,2,FALSE),\"\"\">\",\"#\",IF(ISERROR(SEARCH(\"EUR\",$A4)),11,7)))+2,FIND(\"%\",MID(VLOOKUP($C4,Tabelle2!$C:$D,2,FALSE),FIND(\"#\",SUBSTITUTE(VLOOKUP($C4,Tabelle2!$C:$D,2,FALSE),\"\"\">\",\"#\",IF(ISERROR(SEARCH(\"EUR\",$A4)),11,7)))+2,11))-1)/100,\"\")","v":0.66659999999999997},{"$f":"IFERROR(MID(VLOOKUP($C4,Tabelle2!$C:$D,2,FALSE),FIND(\"#\",SUBSTITUTE(VLOOKUP($C4,Tabelle2!$C:$D,2,FALSE),\"\"\">\",\"#\",IF(ISERROR(SEARCH(\"EUR\",$A4)),14,9)))+2,FIND(\"%\",MID(VLOOKUP($C4,Tabelle2!$C:$D,2,FALSE),FIND(\"#\",SUBSTITUTE(VLOOKUP($C4,Tabelle2!$C:$D,2,FALSE),\"\"\">\",\"#\",IF(ISERROR(SEARCH(\"EUR\",$A4)),14,9)))+2,11))-1)/100,\"\")","v":2.4156999999999997}]
["Lyxor MSCI World UCITS ETF D-EUR","LYX0AG","FR0010315770",{"$f":"IFERROR(MID(VLOOKUP($C5,Tabelle2!$C:$D,2,FALSE),FIND(\"#\",SUBSTITUTE(VLOOKUP($C5,Tabelle2!$C:$D,2,FALSE),\"\"\">\",\"#\",IF(ISERROR(SEARCH(\"EUR\",$A5)),2,1)))+2,FIND(\"%\",MID(VLOOKUP($C5,Tabelle2!$C:$D,2,FALSE),FIND(\"#\",SUBSTITUTE(VLOOKUP($C5,Tabelle2!$C:$D,2,FALSE),\"\"\">\",\"#\",IF(ISERROR(SEARCH(\"EUR\",$A5)),2,1)))+2,10))-1)/100,\"\")","v":0.1051},{"$f":"IFERROR(MID(VLOOKUP($C5,Tabelle2!$C:$D,2,FALSE),FIND(\"#\",SUBSTITUTE(VLOOKUP($C5,Tabelle2!$C:$D,2,FALSE),\"\"\">\",\"#\",IF(ISERROR(SEARCH(\"EUR\",$A5)),5,3)))+2,FIND(\"%\",MID(VLOOKUP($C5,Tabelle2!$C:$D,2,FALSE),FIND(\"#\",SUBSTITUTE(VLOOKUP($C5,Tabelle2!$C:$D,2,FALSE),\"\"\">\",\"#\",IF(ISERROR(SEARCH(\"EUR\",$A5)),5,3)))+2,10))-1)/100,\"\")","v":0.1013},{"$f":"IFERROR(MID(VLOOKUP($C5,Tabelle2!$C:$D,2,FALSE),FIND(\"#\",SUBSTITUTE(VLOOKUP($C5,Tabelle2!$C:$D,2,FALSE),\"\"\">\",\"#\",IF(ISERROR(SEARCH(\"EUR\",$A5)),8,5)))+2,FIND(\"%\",MID(VLOOKUP($C5,Tabelle2!$C:$D,2,FALSE),FIND(\"#\",SUBSTITUTE(VLOOKUP($C5,Tabelle2!$C:$D,2,FALSE),\"\"\">\",\"#\",IF(ISERROR(SEARCH(\"EUR\",$A5)),8,5)))+2,10))-1)/100,\"\")","v":0.4592},{"$f":"IFERROR(MID(VLOOKUP($C5,Tabelle2!$C:$D,2,FALSE),FIND(\"#\",SUBSTITUTE(VLOOKUP($C5,Tabelle2!$C:$D,2,FALSE),\"\"\">\",\"#\",IF(ISERROR(SEARCH(\"EUR\",$A5)),11,7)))+2,FIND(\"%\",MID(VLOOKUP($C5,Tabelle2!$C:$D,2,FALSE),FIND(\"#\",SUBSTITUTE(VLOOKUP($C5,Tabelle2!$C:$D,2,FALSE),\"\"\">\",\"#\",IF(ISERROR(SEARCH(\"EUR\",$A5)),11,7)))+2,11))-1)/100,\"\")","v":0.66739999999999999},{"$f":"IFERROR(MID(VLOOKUP($C5,Tabelle2!$C:$D,2,FALSE),FIND(\"#\",SUBSTITUTE(VLOOKUP($C5,Tabelle2!$C:$D,2,FALSE),\"\"\">\",\"#\",IF(ISERROR(SEARCH(\"EUR\",$A5)),14,9)))+2,FIND(\"%\",MID(VLOOKUP($C5,Tabelle2!$C:$D,2,FALSE),FIND(\"#\",SUBSTITUTE(VLOOKUP($C5,Tabelle2!$C:$D,2,FALSE),\"\"\">\",\"#\",IF(ISERROR(SEARCH(\"EUR\",$A5)),14,9)))+2,11))-1)/100,\"\")","v":2.3515000000000001}]
["HSBC MSCI WORLD UCITS ETF","A1C9KL","DE000A1C9KL8",{"$f":"IFERROR(MID(VLOOKUP($C6,Tabelle2!$C:$D,2,FALSE),FIND(\"#\",SUBSTITUTE(VLOOKUP($C6,Tabelle2!$C:$D,2,FALSE),\"\"\">\",\"#\",IF(ISERROR(SEARCH(\"EUR\",$A6)),2,1)))+2,FIND(\"%\",MID(VLOOKUP($C6,Tabelle2!$C:$D,2,FALSE),FIND(\"#\",SUBSTITUTE(VLOOKUP($C6,Tabelle2!$C:$D,2,FALSE),\"\"\">\",\"#\",IF(ISERROR(SEARCH(\"EUR\",$A6)),2,1)))+2,10))-1)/100,\"\")","v":0.10529999999999999},{"$f":"IFERROR(MID(VLOOKUP($C6,Tabelle2!$C:$D,2,FALSE),FIND(\"#\",SUBSTITUTE(VLOOKUP($C6,Tabelle2!$C:$D,2,FALSE),\"\"\">\",\"#\",IF(ISERROR(SEARCH(\"EUR\",$A6)),5,3)))+2,FIND(\"%\",MID(VLOOKUP($C6,Tabelle2!$C:$D,2,FALSE),FIND(\"#\",SUBSTITUTE(VLOOKUP($C6,Tabelle2!$C:$D,2,FALSE),\"\"\">\",\"#\",IF(ISERROR(SEARCH(\"EUR\",$A6)),5,3)))+2,10))-1)/100,\"\")","v":0.10220000000000001},{"$f":"IFERROR(MID(VLOOKUP($C6,Tabelle2!$C:$D,2,FALSE),FIND(\"#\",SUBSTITUTE(VLOOKUP($C6,Tabelle2!$C:$D,2,FALSE),\"\"\">\",\"#\",IF(ISERROR(SEARCH(\"EUR\",$A6)),8,5)))+2,FIND(\"%\",MID(VLOOKUP($C6,Tabelle2!$C:$D,2,FALSE),FIND(\"#\",SUBSTITUTE(VLOOKUP($C6,Tabelle2!$C:$D,2,FALSE),\"\"\">\",\"#\",IF(ISERROR(SEARCH(\"EUR\",$A6)),8,5)))+2,10))-1)/100,\"\")","v":0.47200000000000003},{"$f":"IFERROR(MID(VLOOKUP($C6,Tabelle2!$C:$D,2,FALSE),FIND(\"#\",SUBSTITUTE(VLOOKUP($C6,Tabelle2!$C:$D,2,FALSE),\"\"\">\",\"#\",IF(ISERROR(SEARCH(\"EUR\",$A6)),11,7)))+2,FIND(\"%\",MID(VLOOKUP($C6,Tabelle2!$C:$D,2,FALSE),FIND(\"#\",SUBSTITUTE(VLOOKUP($C6,Tabelle2!$C:$D,2,FALSE),\"\"\">\",\"#\",IF(ISERROR(SEARCH(\"EUR\",$A6)),11,7)))+2,11))-1)/100,\"\")","v":0.66359999999999997},{"$f":"IFERROR(MID(VLOOKUP($C6,Tabelle2!$C:$D,2,FALSE),FIND(\"#\",SUBSTITUTE(VLOOKUP($C6,Tabelle2!$C:$D,2,FALSE),\"\"\">\",\"#\",IF(ISERROR(SEARCH(\"EUR\",$A6)),14,9)))+2,FIND(\"%\",MID(VLOOKUP($C6,Tabelle2!$C:$D,2,FALSE),FIND(\"#\",SUBSTITUTE(VLOOKUP($C6,Tabelle2!$C:$D,2,FALSE),\"\"\">\",\"#\",IF(ISERROR(SEARCH(\"EUR\",$A6)),14,9)))+2,11))-1)/100,\"\")","v":""}]
["Amundi MSCI World UCITS ETF - EUR (C)","A2H59Q","LU1681043599",{"$f":"IFERROR(MID(VLOOKUP($C7,Tabelle2!$C:$D,2,FALSE),FIND(\"#\",SUBSTITUTE(VLOOKUP($C7,Tabelle2!$C:$D,2,FALSE),\"\"\">\",\"#\",IF(ISERROR(SEARCH(\"EUR\",$A7)),2,1)))+2,FIND(\"%\",MID(VLOOKUP($C7,Tabelle2!$C:$D,2,FALSE),FIND(\"#\",SUBSTITUTE(VLOOKUP($C7,Tabelle2!$C:$D,2,FALSE),\"\"\">\",\"#\",IF(ISERROR(SEARCH(\"EUR\",$A7)),2,1)))+2,10))-1)/100,\"\")","v":9.9499999999999991E-2},{"$f":"IFERROR(MID(VLOOKUP($C7,Tabelle2!$C:$D,2,FALSE),FIND(\"#\",SUBSTITUTE(VLOOKUP($C7,Tabelle2!$C:$D,2,FALSE),\"\"\">\",\"#\",IF(ISERROR(SEARCH(\"EUR\",$A7)),5,3)))+2,FIND(\"%\",MID(VLOOKUP($C7,Tabelle2!$C:$D,2,FALSE),FIND(\"#\",SUBSTITUTE(VLOOKUP($C7,Tabelle2!$C:$D,2,FALSE),\"\"\">\",\"#\",IF(ISERROR(SEARCH(\"EUR\",$A7)),5,3)))+2,10))-1)/100,\"\")","v":""},{"$f":"IFERROR(MID(VLOOKUP($C7,Tabelle2!$C:$D,2,FALSE),FIND(\"#\",SUBSTITUTE(VLOOKUP($C7,Tabelle2!$C:$D,2,FALSE),\"\"\">\",\"#\",IF(ISERROR(SEARCH(\"EUR\",$A7)),8,5)))+2,FIND(\"%\",MID(VLOOKUP($C7,Tabelle2!$C:$D,2,FALSE),FIND(\"#\",SUBSTITUTE(VLOOKUP($C7,Tabelle2!$C:$D,2,FALSE),\"\"\">\",\"#\",IF(ISERROR(SEARCH(\"EUR\",$A7)),8,5)))+2,10))-1)/100,\"\")","v":""},{"$f":"IFERROR(MID(VLOOKUP($C7,Tabelle2!$C:$D,2,FALSE),FIND(\"#\",SUBSTITUTE(VLOOKUP($C7,Tabelle2!$C:$D,2,FALSE),\"\"\">\",\"#\",IF(ISERROR(SEARCH(\"EUR\",$A7)),11,7)))+2,FIND(\"%\",MID(VLOOKUP($C7,Tabelle2!$C:$D,2,FALSE),FIND(\"#\",SUBSTITUTE(VLOOKUP($C7,Tabelle2!$C:$D,2,FALSE),\"\"\">\",\"#\",IF(ISERROR(SEARCH(\"EUR\",$A7)),11,7)))+2,11))-1)/100,\"\")","v":""},{"$f":"IFERROR(MID(VLOOKUP($C7,Tabelle2!$C:$D,2,FALSE),FIND(\"#\",SUBSTITUTE(VLOOKUP($C7,Tabelle2!$C:$D,2,FALSE),\"\"\">\",\"#\",IF(ISERROR(SEARCH(\"EUR\",$A7)),14,9)))+2,FIND(\"%\",MID(VLOOKUP($C7,Tabelle2!$C:$D,2,FALSE),FIND(\"#\",SUBSTITUTE(VLOOKUP($C7,Tabelle2!$C:$D,2,FALSE),\"\"\">\",\"#\",IF(ISERROR(SEARCH(\"EUR\",$A7)),14,9)))+2,11))-1)/100,\"\")","v":""}]
["Xtrackers MSCI World Index UCITS ETF 1D","A1XEY2","IE00BK1PV551",{"$f":"IFERROR(MID(VLOOKUP($C8,Tabelle2!$C:$D,2,FALSE),FIND(\"#\",SUBSTITUTE(VLOOKUP($C8,Tabelle2!$C:$D,2,FALSE),\"\"\">\",\"#\",IF(ISERROR(SEARCH(\"EUR\",$A8)),2,1)))+2,FIND(\"%\",MID(VLOOKUP($C8,Tabelle2!$C:$D,2,FALSE),FIND(\"#\",SUBSTITUTE(VLOOKUP($C8,Tabelle2!$C:$D,2,FALSE),\"\"\">\",\"#\",IF(ISERROR(SEARCH(\"EUR\",$A8)),2,1)))+2,10))-1)/100,\"\")","v":0.1133},{"$f":"IFERROR(MID(VLOOKUP($C8,Tabelle2!$C:$D,2,FALSE),FIND(\"#\",SUBSTITUTE(VLOOKUP($C8,Tabelle2!$C:$D,2,FALSE),\"\"\">\",\"#\",IF(ISERROR(SEARCH(\"EUR\",$A8)),5,3)))+2,FIND(\"%\",MID(VLOOKUP($C8,Tabelle2!$C:$D,2,FALSE),FIND(\"#\",SUBSTITUTE(VLOOKUP($C8,Tabelle2!$C:$D,2,FALSE),\"\"\">\",\"#\",IF(ISERROR(SEARCH(\"EUR\",$A8)),5,3)))+2,10))-1)/100,\"\")","v":9.820000000000001E-2},{"$f":"IFERROR(MID(VLOOKUP($C8,Tabelle2!$C:$D,2,FALSE),FIND(\"#\",SUBSTITUTE(VLOOKUP($C8,Tabelle2!$C:$D,2,FALSE),\"\"\">\",\"#\",IF(ISERROR(SEARCH(\"EUR\",$A8)),8,5)))+2,FIND(\"%\",MID(VLOOKUP($C8,Tabelle2!$C:$D,2,FALSE),FIND(\"#\",SUBSTITUTE(VLOOKUP($C8,Tabelle2!$C:$D,2,FALSE),\"\"\">\",\"#\",IF(ISERROR(SEARCH(\"EUR\",$A8)),8,5)))+2,10))-1)/100,\"\")","v":0.46299999999999997},{"$f":"IFERROR(MID(VLOOKUP($C8,Tabelle2!$C:$D,2,FALSE),FIND(\"#\",SUBSTITUTE(VLOOKUP($C8,Tabelle2!$C:$D,2,FALSE),\"\"\">\",\"#\",IF(ISERROR(SEARCH(\"EUR\",$A8)),11,7)))+2,FIND(\"%\",MID(VLOOKUP($C8,Tabelle2!$C:$D,2,FALSE),FIND(\"#\",SUBSTITUTE(VLOOKUP($C8,Tabelle2!$C:$D,2,FALSE),\"\"\">\",\"#\",IF(ISERROR(SEARCH(\"EUR\",$A8)),11,7)))+2,11))-1)/100,\"\")","v":""},{"$f":"IFERROR(MID(VLOOKUP($C8,Tabelle2!$C:$D,2,FALSE),FIND(\"#\",SUBSTITUTE(VLOOKUP($C8,Tabelle2!$C:$D,2,FALSE),\"\"\">\",\"#\",IF(ISERROR(SEARCH(\"EUR\",$A8)),14,9)))+2,FIND(\"%\",MID(VLOOKUP($C8,Tabelle2!$C:$D,2,FALSE),FIND(\"#\",SUBSTITUTE(VLOOKUP($C8,Tabelle2!$C:$D,2,FALSE),\"\"\">\",\"#\",IF(ISERROR(SEARCH(\"EUR\",$A8)),14,9)))+2,11))-1)/100,\"\")","v":""}]
["Xtrackers MSCI World Index UCITS ETF 1C","A1XB5U","IE00BJ0KDQ92",{"$f":"IFERROR(MID(VLOOKUP($C9,Tabelle2!$C:$D,2,FALSE),FIND(\"#\",SUBSTITUTE(VLOOKUP($C9,Tabelle2!$C:$D,2,FALSE),\"\"\">\",\"#\",IF(ISERROR(SEARCH(\"EUR\",$A9)),2,1)))+2,FIND(\"%\",MID(VLOOKUP($C9,Tabelle2!$C:$D,2,FALSE),FIND(\"#\",SUBSTITUTE(VLOOKUP($C9,Tabelle2!$C:$D,2,FALSE),\"\"\">\",\"#\",IF(ISERROR(SEARCH(\"EUR\",$A9)),2,1)))+2,10))-1)/100,\"\")","v":0.1133},{"$f":"IFERROR(MID(VLOOKUP($C9,Tabelle2!$C:$D,2,FALSE),FIND(\"#\",SUBSTITUTE(VLOOKUP($C9,Tabelle2!$C:$D,2,FALSE),\"\"\">\",\"#\",IF(ISERROR(SEARCH(\"EUR\",$A9)),5,3)))+2,FIND(\"%\",MID(VLOOKUP($C9,Tabelle2!$C:$D,2,FALSE),FIND(\"#\",SUBSTITUTE(VLOOKUP($C9,Tabelle2!$C:$D,2,FALSE),\"\"\">\",\"#\",IF(ISERROR(SEARCH(\"EUR\",$A9)),5,3)))+2,10))-1)/100,\"\")","v":9.8299999999999998E-2},{"$f":"IFERROR(MID(VLOOKUP($C9,Tabelle2!$C:$D,2,FALSE),FIND(\"#\",SUBSTITUTE(VLOOKUP($C9,Tabelle2!$C:$D,2,FALSE),\"\"\">\",\"#\",IF(ISERROR(SEARCH(\"EUR\",$A9)),8,5)))+2,FIND(\"%\",MID(VLOOKUP($C9,Tabelle2!$C:$D,2,FALSE),FIND(\"#\",SUBSTITUTE(VLOOKUP($C9,Tabelle2!$C:$D,2,FALSE),\"\"\">\",\"#\",IF(ISERROR(SEARCH(\"EUR\",$A9)),8,5)))+2,10))-1)/100,\"\")","v":0.46310000000000001},{"$f":"IFERROR(MID(VLOOKUP($C9,Tabelle2!$C:$D,2,FALSE),FIND(\"#\",SUBSTITUTE(VLOOKUP($C9,Tabelle2!$C:$D,2,FALSE),\"\"\">\",\"#\",IF(ISERROR(SEARCH(\"EUR\",$A9)),11,7)))+2,FIND(\"%\",MID(VLOOKUP($C9,Tabelle2!$C:$D,2,FALSE),FIND(\"#\",SUBSTITUTE(VLOOKUP($C9,Tabelle2!$C:$D,2,FALSE),\"\"\">\",\"#\",IF(ISERROR(SEARCH(\"EUR\",$A9)),11,7)))+2,11))-1)/100,\"\")","v":""},{"$f":"IFERROR(MID(VLOOKUP($C9,Tabelle2!$C:$D,2,FALSE),FIND(\"#\",SUBSTITUTE(VLOOKUP($C9,Tabelle2!$C:$D,2,FALSE),\"\"\">\",\"#\",IF(ISERROR(SEARCH(\"EUR\",$A9)),14,9)))+2,FIND(\"%\",MID(VLOOKUP($C9,Tabelle2!$C:$D,2,FALSE),FIND(\"#\",SUBSTITUTE(VLOOKUP($C9,Tabelle2!$C:$D,2,FALSE),\"\"\">\",\"#\",IF(ISERROR(SEARCH(\"EUR\",$A9)),14,9)))+2,11))-1)/100,\"\")","v":""}]
["Invesco MSCI World UCITS ETF","A0RGCS","IE00B60SX394",{"$f":"IFERROR(MID(VLOOKUP($C10,Tabelle2!$C:$D,2,FALSE),FIND(\"#\",SUBSTITUTE(VLOOKUP($C10,Tabelle2!$C:$D,2,FALSE),\"\"\">\",\"#\",IF(ISERROR(SEARCH(\"EUR\",$A10)),2,1)))+2,FIND(\"%\",MID(VLOOKUP($C10,Tabelle2!$C:$D,2,FALSE),FIND(\"#\",SUBSTITUTE(VLOOKUP($C10,Tabelle2!$C:$D,2,FALSE),\"\"\">\",\"#\",IF(ISERROR(SEARCH(\"EUR\",$A10)),2,1)))+2,10))-1)/100,\"\")","v":0.10539999999999999},{"$f":"IFERROR(MID(VLOOKUP($C10,Tabelle2!$C:$D,2,FALSE),FIND(\"#\",SUBSTITUTE(VLOOKUP($C10,Tabelle2!$C:$D,2,FALSE),\"\"\">\",\"#\",IF(ISERROR(SEARCH(\"EUR\",$A10)),5,3)))+2,FIND(\"%\",MID(VLOOKUP($C10,Tabelle2!$C:$D,2,FALSE),FIND(\"#\",SUBSTITUTE(VLOOKUP($C10,Tabelle2!$C:$D,2,FALSE),\"\"\">\",\"#\",IF(ISERROR(SEARCH(\"EUR\",$A10)),5,3)))+2,10))-1)/100,\"\")","v":9.8599999999999993E-2},{"$f":"IFERROR(MID(VLOOKUP($C10,Tabelle2!$C:$D,2,FALSE),FIND(\"#\",SUBSTITUTE(VLOOKUP($C10,Tabelle2!$C:$D,2,FALSE),\"\"\">\",\"#\",IF(ISERROR(SEARCH(\"EUR\",$A10)),8,5)))+2,FIND(\"%\",MID(VLOOKUP($C10,Tabelle2!$C:$D,2,FALSE),FIND(\"#\",SUBSTITUTE(VLOOKUP($C10,Tabelle2!$C:$D,2,FALSE),\"\"\">\",\"#\",IF(ISERROR(SEARCH(\"EUR\",$A10)),8,5)))+2,10))-1)/100,\"\")","v":0.46210000000000001},{"$f":"IFERROR(MID(VLOOKUP($C10,Tabelle2!$C:$D,2,FALSE),FIND(\"#\",SUBSTITUTE(VLOOKUP($C10,Tabelle2!$C:$D,2,FALSE),\"\"\">\",\"#\",IF(ISERROR(SEARCH(\"EUR\",$A10)),11,7)))+2,FIND(\"%\",MID(VLOOKUP($C10,Tabelle2!$C:$D,2,FALSE),FIND(\"#\",SUBSTITUTE(VLOOKUP($C10,Tabelle2!$C:$D,2,FALSE),\"\"\">\",\"#\",IF(ISERROR(SEARCH(\"EUR\",$A10)),11,7)))+2,11))-1)/100,\"\")","v":0.66079999999999994},{"$f":"IFERROR(MID(VLOOKUP($C10,Tabelle2!$C:$D,2,FALSE),FIND(\"#\",SUBSTITUTE(VLOOKUP($C10,Tabelle2!$C:$D,2,FALSE),\"\"\">\",\"#\",IF(ISERROR(SEARCH(\"EUR\",$A10)),14,9)))+2,FIND(\"%\",MID(VLOOKUP($C10,Tabelle2!$C:$D,2,FALSE),FIND(\"#\",SUBSTITUTE(VLOOKUP($C10,Tabelle2!$C:$D,2,FALSE),\"\"\">\",\"#\",IF(ISERROR(SEARCH(\"EUR\",$A10)),14,9)))+2,11))-1)/100,\"\")","v":""}]
["UBS ETF (IE) MSCI World UCITS ETF (USD) A-dis","A1JVCA","IE00B7KQ7B66",{"$f":"IFERROR(MID(VLOOKUP($C11,Tabelle2!$C:$D,2,FALSE),FIND(\"#\",SUBSTITUTE(VLOOKUP($C11,Tabelle2!$C:$D,2,FALSE),\"\"\">\",\"#\",IF(ISERROR(SEARCH(\"EUR\",$A11)),2,1)))+2,FIND(\"%\",MID(VLOOKUP($C11,Tabelle2!$C:$D,2,FALSE),FIND(\"#\",SUBSTITUTE(VLOOKUP($C11,Tabelle2!$C:$D,2,FALSE),\"\"\">\",\"#\",IF(ISERROR(SEARCH(\"EUR\",$A11)),2,1)))+2,10))-1)/100,\"\")","v":0.10529999999999999},{"$f":"IFERROR(MID(VLOOKUP($C11,Tabelle2!$C:$D,2,FALSE),FIND(\"#\",SUBSTITUTE(VLOOKUP($C11,Tabelle2!$C:$D,2,FALSE),\"\"\">\",\"#\",IF(ISERROR(SEARCH(\"EUR\",$A11)),5,3)))+2,FIND(\"%\",MID(VLOOKUP($C11,Tabelle2!$C:$D,2,FALSE),FIND(\"#\",SUBSTITUTE(VLOOKUP($C11,Tabelle2!$C:$D,2,FALSE),\"\"\">\",\"#\",IF(ISERROR(SEARCH(\"EUR\",$A11)),5,3)))+2,10))-1)/100,\"\")","v":9.74E-2},{"$f":"IFERROR(MID(VLOOKUP($C11,Tabelle2!$C:$D,2,FALSE),FIND(\"#\",SUBSTITUTE(VLOOKUP($C11,Tabelle2!$C:$D,2,FALSE),\"\"\">\",\"#\",IF(ISERROR(SEARCH(\"EUR\",$A11)),8,5)))+2,FIND(\"%\",MID(VLOOKUP($C11,Tabelle2!$C:$D,2,FALSE),FIND(\"#\",SUBSTITUTE(VLOOKUP($C11,Tabelle2!$C:$D,2,FALSE),\"\"\">\",\"#\",IF(ISERROR(SEARCH(\"EUR\",$A11)),8,5)))+2,10))-1)/100,\"\")","v":0.4592},{"$f":"IFERROR(MID(VLOOKUP($C11,Tabelle2!$C:$D,2,FALSE),FIND(\"#\",SUBSTITUTE(VLOOKUP($C11,Tabelle2!$C:$D,2,FALSE),\"\"\">\",\"#\",IF(ISERROR(SEARCH(\"EUR\",$A11)),11,7)))+2,FIND(\"%\",MID(VLOOKUP($C11,Tabelle2!$C:$D,2,FALSE),FIND(\"#\",SUBSTITUTE(VLOOKUP($C11,Tabelle2!$C:$D,2,FALSE),\"\"\">\",\"#\",IF(ISERROR(SEARCH(\"EUR\",$A11)),11,7)))+2,11))-1)/100,\"\")","v":0.66020000000000001},{"$f":"IFERROR(MID(VLOOKUP($C11,Tabelle2!$C:$D,2,FALSE),FIND(\"#\",SUBSTITUTE(VLOOKUP($C11,Tabelle2!$C:$D,2,FALSE),\"\"\">\",\"#\",IF(ISERROR(SEARCH(\"EUR\",$A11)),14,9)))+2,FIND(\"%\",MID(VLOOKUP($C11,Tabelle2!$C:$D,2,FALSE),FIND(\"#\",SUBSTITUTE(VLOOKUP($C11,Tabelle2!$C:$D,2,FALSE),\"\"\">\",\"#\",IF(ISERROR(SEARCH(\"EUR\",$A11)),14,9)))+2,11))-1)/100,\"\")","v":""}]
["iShares MSCI World UCITS ETF (Dist)","A0HGV0","IE00B0M62Q58",{"$f":"IFERROR(MID(VLOOKUP($C12,Tabelle2!$C:$D,2,FALSE),FIND(\"#\",SUBSTITUTE(VLOOKUP($C12,Tabelle2!$C:$D,2,FALSE),\"\"\">\",\"#\",IF(ISERROR(SEARCH(\"EUR\",$A12)),2,1)))+2,FIND(\"%\",MID(VLOOKUP($C12,Tabelle2!$C:$D,2,FALSE),FIND(\"#\",SUBSTITUTE(VLOOKUP($C12,Tabelle2!$C:$D,2,FALSE),\"\"\">\",\"#\",IF(ISERROR(SEARCH(\"EUR\",$A12)),2,1)))+2,10))-1)/100,\"\")","v":0.1047},{"$f":"IFERROR(MID(VLOOKUP($C12,Tabelle2!$C:$D,2,FALSE),FIND(\"#\",SUBSTITUTE(VLOOKUP($C12,Tabelle2!$C:$D,2,FALSE),\"\"\">\",\"#\",IF(ISERROR(SEARCH(\"EUR\",$A12)),5,3)))+2,FIND(\"%\",MID(VLOOKUP($C12,Tabelle2!$C:$D,2,FALSE),FIND(\"#\",SUBSTITUTE(VLOOKUP($C12,Tabelle2!$C:$D,2,FALSE),\"\"\">\",\"#\",IF(ISERROR(SEARCH(\"EUR\",$A12)),5,3)))+2,10))-1)/100,\"\")","v":9.5199999999999993E-2},{"$f":"IFERROR(MID(VLOOKUP($C12,Tabelle2!$C:$D,2,FALSE),FIND(\"#\",SUBSTITUTE(VLOOKUP($C12,Tabelle2!$C:$D,2,FALSE),\"\"\">\",\"#\",IF(ISERROR(SEARCH(\"EUR\",$A12)),8,5)))+2,FIND(\"%\",MID(VLOOKUP($C12,Tabelle2!$C:$D,2,FALSE),FIND(\"#\",SUBSTITUTE(VLOOKUP($C12,Tabelle2!$C:$D,2,FALSE),\"\"\">\",\"#\",IF(ISERROR(SEARCH(\"EUR\",$A12)),8,5)))+2,10))-1)/100,\"\")","v":0.45409999999999995},{"$f":"IFERROR(MID(VLOOKUP($C12,Tabelle2!$C:$D,2,FALSE),FIND(\"#\",SUBSTITUTE(VLOOKUP($C12,Tabelle2!$C:$D,2,FALSE),\"\"\">\",\"#\",IF(ISERROR(SEARCH(\"EUR\",$A12)),11,7)))+2,FIND(\"%\",MID(VLOOKUP($C12,Tabelle2!$C:$D,2,FALSE),FIND(\"#\",SUBSTITUTE(VLOOKUP($C12,Tabelle2!$C:$D,2,FALSE),\"\"\">\",\"#\",IF(ISERROR(SEARCH(\"EUR\",$A12)),11,7)))+2,11))-1)/100,\"\")","v":0.65529999999999999},{"$f":"IFERROR(MID(VLOOKUP($C12,Tabelle2!$C:$D,2,FALSE),FIND(\"#\",SUBSTITUTE(VLOOKUP($C12,Tabelle2!$C:$D,2,FALSE),\"\"\">\",\"#\",IF(ISERROR(SEARCH(\"EUR\",$A12)),14,9)))+2,FIND(\"%\",MID(VLOOKUP($C12,Tabelle2!$C:$D,2,FALSE),FIND(\"#\",SUBSTITUTE(VLOOKUP($C12,Tabelle2!$C:$D,2,FALSE),\"\"\">\",\"#\",IF(ISERROR(SEARCH(\"EUR\",$A12)),14,9)))+2,11))-1)/100,\"\")","v":2.3092999999999999}]
["Flossbach v. Storch Multiple Opp. R EUR","A0M430","LU0323578657",{"$f":"IFERROR(MID(VLOOKUP($C13,Tabelle2!$C:$D,2,FALSE),FIND(\"#\",SUBSTITUTE(VLOOKUP($C13,Tabelle2!$C:$D,2,FALSE),\"\"\">\",\"#\",IF(ISERROR(SEARCH(\"EUR\",$A13)),2,1)))+2,FIND(\"%\",MID(VLOOKUP($C13,Tabelle2!$C:$D,2,FALSE),FIND(\"#\",SUBSTITUTE(VLOOKUP($C13,Tabelle2!$C:$D,2,FALSE),\"\"\">\",\"#\",IF(ISERROR(SEARCH(\"EUR\",$A13)),2,1)))+2,10))-1)/100,\"\")","v":6.4399999999999999E-2},{"$f":"IFERROR(MID(VLOOKUP($C13,Tabelle2!$C:$D,2,FALSE),FIND(\"#\",SUBSTITUTE(VLOOKUP($C13,Tabelle2!$C:$D,2,FALSE),\"\"\">\",\"#\",IF(ISERROR(SEARCH(\"EUR\",$A13)),5,3)))+2,FIND(\"%\",MID(VLOOKUP($C13,Tabelle2!$C:$D,2,FALSE),FIND(\"#\",SUBSTITUTE(VLOOKUP($C13,Tabelle2!$C:$D,2,FALSE),\"\"\">\",\"#\",IF(ISERROR(SEARCH(\"EUR\",$A13)),5,3)))+2,10))-1)/100,\"\")","v":3.7400000000000003E-2},{"$f":"IFERROR(MID(VLOOKUP($C13,Tabelle2!$C:$D,2,FALSE),FIND(\"#\",SUBSTITUTE(VLOOKUP($C13,Tabelle2!$C:$D,2,FALSE),\"\"\">\",\"#\",IF(ISERROR(SEARCH(\"EUR\",$A13)),8,5)))+2,FIND(\"%\",MID(VLOOKUP($C13,Tabelle2!$C:$D,2,FALSE),FIND(\"#\",SUBSTITUTE(VLOOKUP($C13,Tabelle2!$C:$D,2,FALSE),\"\"\">\",\"#\",IF(ISERROR(SEARCH(\"EUR\",$A13)),8,5)))+2,10))-1)/100,\"\")","v":0.2089},{"$f":"IFERROR(MID(VLOOKUP($C13,Tabelle2!$C:$D,2,FALSE),FIND(\"#\",SUBSTITUTE(VLOOKUP($C13,Tabelle2!$C:$D,2,FALSE),\"\"\">\",\"#\",IF(ISERROR(SEARCH(\"EUR\",$A13)),11,7)))+2,FIND(\"%\",MID(VLOOKUP($C13,Tabelle2!$C:$D,2,FALSE),FIND(\"#\",SUBSTITUTE(VLOOKUP($C13,Tabelle2!$C:$D,2,FALSE),\"\"\">\",\"#\",IF(ISERROR(SEARCH(\"EUR\",$A13)),11,7)))+2,11))-1)/100,\"\")","v":0.376},{"$f":"IFERROR(MID(VLOOKUP($C13,Tabelle2!$C:$D,2,FALSE),FIND(\"#\",SUBSTITUTE(VLOOKUP($C13,Tabelle2!$C:$D,2,FALSE),\"\"\">\",\"#\",IF(ISERROR(SEARCH(\"EUR\",$A13)),14,9)))+2,FIND(\"%\",MID(VLOOKUP($C13,Tabelle2!$C:$D,2,FALSE),FIND(\"#\",SUBSTITUTE(VLOOKUP($C13,Tabelle2!$C:$D,2,FALSE),\"\"\">\",\"#\",IF(ISERROR(SEARCH(\"EUR\",$A13)),14,9)))+2,11))-1)/100,\"\")","v":1.9147999999999998}]
["Frankfurter Aktienfonds für Stiftungen T EUR","A0M8HD","DE000A0M8HD2",{"$f":"IFERROR(MID(VLOOKUP($C14,Tabelle2!$C:$D,2,FALSE),FIND(\"#\",SUBSTITUTE(VLOOKUP($C14,Tabelle2!$C:$D,2,FALSE),\"\"\">\",\"#\",IF(ISERROR(SEARCH(\"EUR\",$A14)),2,1)))+2,FIND(\"%\",MID(VLOOKUP($C14,Tabelle2!$C:$D,2,FALSE),FIND(\"#\",SUBSTITUTE(VLOOKUP($C14,Tabelle2!$C:$D,2,FALSE),\"\"\">\",\"#\",IF(ISERROR(SEARCH(\"EUR\",$A14)),2,1)))+2,10))-1)/100,\"\")","v":1.1899999999999999E-2},{"$f":"IFERROR(MID(VLOOKUP($C14,Tabelle2!$C:$D,2,FALSE),FIND(\"#\",SUBSTITUTE(VLOOKUP($C14,Tabelle2!$C:$D,2,FALSE),\"\"\">\",\"#\",IF(ISERROR(SEARCH(\"EUR\",$A14)),5,3)))+2,FIND(\"%\",MID(VLOOKUP($C14,Tabelle2!$C:$D,2,FALSE),FIND(\"#\",SUBSTITUTE(VLOOKUP($C14,Tabelle2!$C:$D,2,FALSE),\"\"\">\",\"#\",IF(ISERROR(SEARCH(\"EUR\",$A14)),5,3)))+2,10))-1)/100,\"\")","v":-0.10529999999999999},{"$f":"IFERROR(MID(VLOOKUP($C14,Tabelle2!$C:$D,2,FALSE),FIND(\"#\",SUBSTITUTE(VLOOKUP($C14,Tabelle2!$C:$D,2,FALSE),\"\"\">\",\"#\",IF(ISERROR(SEARCH(\"EUR\",$A14)),8,5)))+2,FIND(\"%\",MID(VLOOKUP($C14,Tabelle2!$C:$D,2,FALSE),FIND(\"#\",SUBSTITUTE(VLOOKUP($C14,Tabelle2!$C:$D,2,FALSE),\"\"\">\",\"#\",IF(ISERROR(SEARCH(\"EUR\",$A14)),8,5)))+2,10))-1)/100,\"\")","v":0.12590000000000001},{"$f":"IFERROR(MID(VLOOKUP($C14,Tabelle2!$C:$D,2,FALSE),FIND(\"#\",SUBSTITUTE(VLOOKUP($C14,Tabelle2!$C:$D,2,FALSE),\"\"\">\",\"#\",IF(ISERROR(SEARCH(\"EUR\",$A14)),11,7)))+2,FIND(\"%\",MID(VLOOKUP($C14,Tabelle2!$C:$D,2,FALSE),FIND(\"#\",SUBSTITUTE(VLOOKUP($C14,Tabelle2!$C:$D,2,FALSE),\"\"\">\",\"#\",IF(ISERROR(SEARCH(\"EUR\",$A14)),11,7)))+2,11))-1)/100,\"\")","v":0.23949999999999999},{"$f":"IFERROR(MID(VLOOKUP($C14,Tabelle2!$C:$D,2,FALSE),FIND(\"#\",SUBSTITUTE(VLOOKUP($C14,Tabelle2!$C:$D,2,FALSE),\"\"\">\",\"#\",IF(ISERROR(SEARCH(\"EUR\",$A14)),14,9)))+2,FIND(\"%\",MID(VLOOKUP($C14,Tabelle2!$C:$D,2,FALSE),FIND(\"#\",SUBSTITUTE(VLOOKUP($C14,Tabelle2!$C:$D,2,FALSE),\"\"\">\",\"#\",IF(ISERROR(SEARCH(\"EUR\",$A14)),14,9)))+2,11))-1)/100,\"\")","v":2.4090000000000003}]
["Carmignac Investissement A EUR acc","A0DP5W","FR0010148981",{"$f":"IFERROR(MID(VLOOKUP($C15,Tabelle2!$C:$D,2,FALSE),FIND(\"#\",SUBSTITUTE(VLOOKUP($C15,Tabelle2!$C:$D,2,FALSE),\"\"\">\",\"#\",IF(ISERROR(SEARCH(\"EUR\",$A15)),2,1)))+2,FIND(\"%\",MID(VLOOKUP($C15,Tabelle2!$C:$D,2,FALSE),FIND(\"#\",SUBSTITUTE(VLOOKUP($C15,Tabelle2!$C:$D,2,FALSE),\"\"\">\",\"#\",IF(ISERROR(SEARCH(\"EUR\",$A15)),2,1)))+2,10))-1)/100,\"\")","v":0.1091},{"$f":"IFERROR(MID(VLOOKUP($C15,Tabelle2!$C:$D,2,FALSE),FIND(\"#\",SUBSTITUTE(VLOOKUP($C15,Tabelle2!$C:$D,2,FALSE),\"\"\">\",\"#\",IF(ISERROR(SEARCH(\"EUR\",$A15)),5,3)))+2,FIND(\"%\",MID(VLOOKUP($C15,Tabelle2!$C:$D,2,FALSE),FIND(\"#\",SUBSTITUTE(VLOOKUP($C15,Tabelle2!$C:$D,2,FALSE),\"\"\">\",\"#\",IF(ISERROR(SEARCH(\"EUR\",$A15)),5,3)))+2,10))-1)/100,\"\")","v":-4.0399999999999998E-2},{"$f":"IFERROR(MID(VLOOKUP($C15,Tabelle2!$C:$D,2,FALSE),FIND(\"#\",SUBSTITUTE(VLOOKUP($C15,Tabelle2!$C:$D,2,FALSE),\"\"\">\",\"#\",IF(ISERROR(SEARCH(\"EUR\",$A15)),8,5)))+2,FIND(\"%\",MID(VLOOKUP($C15,Tabelle2!$C:$D,2,FALSE),FIND(\"#\",SUBSTITUTE(VLOOKUP($C15,Tabelle2!$C:$D,2,FALSE),\"\"\">\",\"#\",IF(ISERROR(SEARCH(\"EUR\",$A15)),8,5)))+2,10))-1)/100,\"\")","v":0.1245},{"$f":"IFERROR(MID(VLOOKUP($C15,Tabelle2!$C:$D,2,FALSE),FIND(\"#\",SUBSTITUTE(VLOOKUP($C15,Tabelle2!$C:$D,2,FALSE),\"\"\">\",\"#\",IF(ISERROR(SEARCH(\"EUR\",$A15)),11,7)))+2,FIND(\"%\",MID(VLOOKUP($C15,Tabelle2!$C:$D,2,FALSE),FIND(\"#\",SUBSTITUTE(VLOOKUP($C15,Tabelle2!$C:$D,2,FALSE),\"\"\">\",\"#\",IF(ISERROR(SEARCH(\"EUR\",$A15)),11,7)))+2,11))-1)/100,\"\")","v":0.1724},{"$f":"IFERROR(MID(VLOOKUP($C15,Tabelle2!$C:$D,2,FALSE),FIND(\"#\",SUBSTITUTE(VLOOKUP($C15,Tabelle2!$C:$D,2,FALSE),\"\"\">\",\"#\",IF(ISERROR(SEARCH(\"EUR\",$A15)),14,9)))+2,FIND(\"%\",MID(VLOOKUP($C15,Tabelle2!$C:$D,2,FALSE),FIND(\"#\",SUBSTITUTE(VLOOKUP($C15,Tabelle2!$C:$D,2,FALSE),\"\"\">\",\"#\",IF(ISERROR(SEARCH(\"EUR\",$A15)),14,9)))+2,11))-1)/100,\"\")","v":0.97930000000000006}]

{"sheet":"Tabelle2","index":1,"n_rows":15,"n_cols":4,"rows_kept":15,"cut":false,"hidden":false,"merged":[]}
[]
["ING Fonds","WKN","ISIN","Spalte1"]
["iShares Core MSCI World UCITS ETF USD (Acc)","A0RPWH","IE00B4L5Y983",{"$f":"fwPerfString(C3)","v":"\n<tr><td>laufendes&nbsp;Jahr</td><td><span class=\"fw--table-cell_green\">+9,13%</span></td><td><span class=\"fw--table-cell_green\">+10,53%</span></td><td><span class=\"fw--table-cell_green\">+9,75%</span></td></tr><tr><td>1&nbsp;Jahr</td><td><span class=\"fw--table-cell_green\">+0,66%</span></td><td><span class=\"fw--table-cell_green\">+9,82%</span></td><td><span class=\"fw--table-cell_green\">+4,68%</span></td></tr><tr><td>3&nbsp;Jahre</td><td><span class=\"fw--table-cell_green\">+46,71%</span></td><td><span class=\"fw--table-cell_green\">+46,32%</span></td><td><span class=\"fw--table-cell_green\">+35,17%</span></td></tr><tr><td>5&nbsp;Jahre</td><td><span class=\"fw--table-cell_green\">+38,38%</span></td><td><span class=\"fw--table-cell_green\">+67,39%</span></td><td><span class=\"fw--table-cell_green\">+45,35%</span></td></tr> </tbody>\n</table>\n</div>\n</div>\n<div class=\"col-12 col-lg\">\n<h3 class=\"fw--h2 text-color_lightblue01\">Annualisiert</h3>\n<div class=\"fw--table-wrapper f-table-overflow\">\n<table class=\"fw--table fw--table_responsive js-fw--table_responsive table-performances\">\n<thead>\n<tr>\n<th></th>\n<th>Fonds <span class=\"currency\" style=\"background-color: #c8a4d4;\">USD</span></th>\n<th>Fonds <span class=\"currency\">EUR</span></th>\n<th>Sektor <span class=\"currency\">EUR</span></th>\n</tr>\n</thead>\n"}]
["ComStage MSCI World TRN UCITS ETF","ETF110","LU0392494562","\n<tr><td>laufendes&nbsp;Jahr</td><td><span class=\"fw--table-cell_green\">+9,91%</span></td><td><span class=\"fw--table-cell_green\">+11,35%</span></td><td><span class=\"fw--table-cell_green\">+9,75%</span></td></tr><tr><td>1&nbsp;Jahr</td><td><span class=\"fw--table-cell_green\">+0,75%</span></td><td><span class=\"fw--table-cell_green\">+9,91%</span></td><td><span class=\"fw--table-cell_green\">+4,68%</span></td></tr><tr><td>3&nbsp;Jahre</td><td><span class=\"fw--table-cell_green\">+46,59%</span></td><td><span class=\"fw--table-cell_green\">+46,20%</span></td><td><span class=\"fw--table-cell_green\">+35,17%</span></td></tr><tr><td>5&nbsp;Jahre</td><td><span class=\"fw--table-cell_green\">+37,78%</span></td><td><span class=\"fw--table-cell_green\">+66,66%</span></td><td><span class=\"fw--table-cell_green\">+45,35%</span></td></tr><tr><td>10&nbsp;Jahre</td><td><span class=\"fw--table-cell_green\">+201,14%</span></td><td><span class=\"fw--table-cell_green\">+241,57%</span></td><td><span class=\"fw--table-cell_green\">+165,02%</span></td></tr> </tbody>\n</table>\n</div>\n</div>\n<div class=\"col-12 col-lg\">\n<h3 class=\"fw--h2 text-color_lightblue01\">Annualisiert</h3>\n<div class=\"fw--table-wrapper f-table-overflow\">\n<table class=\"fw--table fw--table_responsive js-fw--table_responsive table-performances\">\n<thead>\n<tr>\n<th></th>\n<th>Fonds <span class=\"currency\" style=\"background-color: #c8a4d4;\">USD</span></th>\n<th>Fonds <span class=\"currency\">EUR</span></th>\n<th>Sektor <span class=\"currency\">EUR</span></th>\n</tr>\n</thead>\n"]
["Lyxor MSCI World UCITS ETF D-EUR","LYX0AG","FR0010315770","\n<tr><td>laufendes&nbsp;Jahr</td><td><span class=\"fw--table-cell_green\">+10,51%</span></td><td><span class=\"fw--table-cell_green\">+9,75%</span></td></tr><tr><td>1&nbsp;Jahr</td><td><span class=\"fw--table-cell_green\">+10,13%</span></td><td><span class=\"fw--table-cell_green\">+4,68%</span></td></tr><tr><td>3&nbsp;Jahre</td><td><span class=\"fw--table-cell_green\">+45,92%</span></td><td><span class=\"fw--table-cell_green\">+35,17%</span></td></tr><tr><td>5&nbsp;Jahre</td><td><span class=\"fw--table-cell_green\">+66,74%</span></td><td><span class=\"fw--table-cell_green\">+45,35%</span></td></tr><tr><td>10&nbsp;Jahre</td><td><span class=\"fw--table-cell_green\">+235,15%</span></td><td><span class=\"fw--table-cell_green\">+165,02%</span></td></tr> </tbody>\n</table>\n</div>\n</div>\n<div class=\"col-12 col-lg\">\n<h3 class=\"fw--h2 text-color_lightblue01\">Annualisiert</h3>\n<div class=\"fw--table-wrapper f-table-overflow\">\n<table class=\"fw--table fw--table_responsive js-fw--table_responsive table-performances\">\n<thead>\n<tr>\n<th></th>\n<th>Fonds in EUR</th>\n<th>Sektor in EUR</th>\n</tr>\n</thead>\n"]
["HSBC MSCI WORLD UCITS ETF","A1C9KL","DE000A1C9KL8","\n<tr><td>laufendes&nbsp;Jahr</td><td><span class=\"fw--table-cell_green\">+9,13%</span></td><td><span class=\"fw--table-cell_green\">+10,53%</span></td><td><span class=\"fw--table-cell_green\">+9,75%</span></td></tr><tr><td>1&nbsp;Jahr</td><td><span class=\"fw--table-cell_green\">+1,03%</span></td><td><span class=\"fw--table-cell_green\">+10,22%</span></td><td><span class=\"fw--table-cell_green\">+4,68%</span></td></tr><tr><td>3&nbsp;Jahre</td><td><span class=\"fw--table-cell_green\">+47,59%</span></td><td><span class=\"fw--table-cell_green\">+47,20%</span></td><td><span class=\"fw--table-cell_green\">+35,17%</span></td></tr><tr><td>5&nbsp;Jahre</td><td><span class=\"fw--table-cell_green\">+37,53%</span></td><td><span class=\"fw--table-cell_green\">+66,36%</span></td><td><span class=\"fw--table-cell_green\">+45,35%</span></td></tr> </tbody>\n</table>\n</div>\n</div>\n<div class=\"col-12 col-lg\">\n<h3 class=\"fw--h2 text-color_lightblue01\">Annualisiert</h3>\n<div class=\"fw--table-wrapper f-table-overflow\">\n<table class=\"fw--table fw--table_responsive js-fw--table_responsive table-performances\">\n<thead>\n<tr>\n<th></th>\n<th>Fonds <span class=\"currency\" style=\"background-color: #c8a4d4;\">USD</span></th>\n<th>Fonds <span class=\"currency\">EUR</span></th>\n<th>Sektor <span class=\"currency\">EUR</span></th>\n</tr>\n</thead>\n"]
["Amundi MSCI World UCITS ETF - EUR (C)","A2H59Q","LU1681043599","\n<tr><td>laufendes&nbsp;Jahr</td><td><span class=\"fw--table-cell_green\">+9,95%</span></td><td><span class=\"fw--table-cell_green\">+9,75%</span></td></tr> </tbody>\n</table>\n</div>\n</div>\n<div class=\"col-12 col-lg\">\n<h3 class=\"fw--h2 text-color_lightblue01\">Annualisiert</h3>\n<div class=\"fw--table-wrapper f-table-overflow\">\n<table class=\"fw--table fw--table_responsive js-fw--table_responsive table-performances\">\n<thead>\n<tr>\n<th></th>\n<th>Fonds in EUR</th>\n<th>Sektor in EUR</th>\n</tr>\n</thead>\n"]
["Xtrackers MSCI World Index UCITS ETF 1D","A1XEY2","IE00BK1PV551","\n<tr><td>laufendes&nbsp;Jahr</td><td><span class=\"fw--table-cell_green\">+9,88%</span></td><td><span class=\"fw--table-cell_green\">+11,33%</span></td><td><span class=\"fw--table-cell_green\">+9,75%</span></td></tr><tr><td>1&nbsp;Jahr</td><td><span class=\"fw--table-cell_green\">+0,67%</span></td><td><span class=\"fw--table-cell_green\">+9,82%</span></td><td><span class=\"fw--table-cell_green\">+4,68%</span></td></tr><tr><td>3&nbsp;Jahre</td><td><span class=\"fw--table-cell_green\">+46,69%</span></td><td><span class=\"fw--table-cell_green\">+46,30%</span></td><td><span class=\"fw--table-cell_green\">+35,17%</span></td></tr> </tbody>\n</table>\n</div>\n</div>\n<div class=\"col-12 col-lg\">\n<h3 class=\"fw--h2 text-color_lightblue01\">Annualisiert</h3>\n<div class=\"fw--table-wrapper f-table-overflow\">\n<table class=\"fw--table fw--table_responsive js-fw--table_responsive table-performances\">\n<thead>\n<tr>\n<th></th>\n<th>Fonds <span class=\"currency\" style=\"background-color: #c8a4d4;\">USD</span></th>\n<th>Fonds <span class=\"currency\">EUR</span></th>\n<th>Sektor <span class=\"currency\">EUR</span></th>\n</tr>\n</thead>\n"]
["Xtrackers MSCI World Index UCITS ETF 1C","A1XB5U","IE00BJ0KDQ92","\n<tr><td>laufendes&nbsp;Jahr</td><td><span class=\"fw--table-cell_green\">+9,88%</span></td><td><span class=\"fw--table-cell_green\">+11,33%</span></td><td><span class=\"fw--table-cell_green\">+9,75%</span></td></tr><tr><td>1&nbsp;Jahr</td><td><span class=\"fw--table-cell_green\">+0,67%</span></td><td><span class=\"fw--table-cell_green\">+9,83%</span></td><td><span class=\"fw--table-cell_green\">+4,68%</span></td></tr><tr><td>3&nbsp;Jahre</td><td><span class=\"fw--table-cell_green\">+46,70%</span></td><td><span class=\"fw--table-cell_green\">+46,31%</span></td><td><span class=\"fw--table-cell_green\">+35,17%</span></td></tr> </tbody>\n</table>\n</div>\n</div>\n<div class=\"col-12 col-lg\">\n<h3 class=\"fw--h2 text-color_lightblue01\">Annualisiert</h3>\n<div class=\"fw--table-wrapper f-table-overflow\">\n<table class=\"fw--table fw--table_responsive js-fw--table_responsive table-performances\">\n<thead>\n<tr>\n<th></th>\n<th>Fonds <span class=\"currency\" style=\"background-color: #c8a4d4;\">USD</span></th>\n<th>Fonds <span class=\"currency\">EUR</span></th>\n<th>Sektor <span class=\"currency\">EUR</span></th>\n</tr>\n</thead>\n"]
["Invesco MSCI World UCITS ETF","A0RGCS","IE00B60SX394","\n<tr><td>laufendes&nbsp;Jahr</td><td><span class=\"fw--table-cell_green\">+9,14%</span></td><td><span class=\"fw--table-cell_green\">+10,54%</span></td><td><span class=\"fw--table-cell_green\">+9,75%</span></td></tr><tr><td>1&nbsp;Jahr</td><td><span class=\"fw--table-cell_green\">+0,70%</span></td><td><span class=\"fw--table-cell_green\">+9,86%</span></td><td><span class=\"fw--table-cell_green\">+4,68%</span></td></tr><tr><td>3&nbsp;Jahre</td><td><span class=\"fw--table-cell_green\">+46,60%</span></td><td><span class=\"fw--table-cell_green\">+46,21%</span></td><td><span class=\"fw--table-cell_green\">+35,17%</span></td></tr><tr><td>5&nbsp;Jahre</td><td><span class=\"fw--table-cell_green\">+37,30%</span></td><td><span class=\"fw--table-cell_green\">+66,08%</span></td><td><span class=\"fw--table-cell_green\">+45,35%</span></td></tr> </tbody>\n</table>\n</div>\n</div>\n<div class=\"col-12 col-lg\">\n<h3 class=\"fw--h2 text-color_lightblue01\">Annualisiert</h3>\n<div class=\"fw--table-wrapper f-table-overflow\">\n<table class=\"fw--table fw--table_responsive js-fw--table_responsive table-performances\">\n<thead>\n<tr>\n<th></th>\n<th>Fonds <span class=\"currency\" style=\"background-color: #c8a4d4;\">USD</span></th>\n<th>Fonds <span class=\"currency\">EUR</span></th>\n<th>Sektor <span class=\"currency\">EUR</span></th>\n</tr>\n</thead>\n"]
["UBS ETF (IE) MSCI World UCITS ETF (USD) A-dis","A1JVCA","IE00B7KQ7B66","\n<tr><td>laufendes&nbsp;Jahr</td><td><span class=\"fw--table-cell_green\">+9,13%</span></td><td><span class=\"fw--table-cell_green\">+10,53%</span></td><td><span class=\"fw--table-cell_green\">+9,75%</span></td></tr><tr><td>1&nbsp;Jahr</td><td><span class=\"fw--table-cell_green\">+0,59%</span></td><td><span class=\"fw--table-cell_green\">+9,74%</span></td><td><span class=\"fw--table-cell_green\">+4,68%</span></td></tr><tr><td>3&nbsp;Jahre</td><td><span class=\"fw--table-cell_green\">+46,30%</span></td><td><span class=\"fw--table-cell_green\">+45,92%</span></td><td><span class=\"fw--table-cell_green\">+35,17%</span></td></tr><tr><td>5&nbsp;Jahre</td><td><span class=\"fw--table-cell_green\">+37,25%</span></td><td><span class=\"fw--table-cell_green\">+66,02%</span></td><td><span class=\"fw--table-cell_green\">+45,35%</span></td></tr> </tbody>\n</table>\n</div>\n</div>\n<div class=\"col-12 col-lg\">\n<h3 class=\"fw--h2 text-color_lightblue01\">Annualisiert</h3>\n<div class=\"fw--table-wrapper f-table-overflow\">\n<table class=\"fw--table fw--table_responsive js-fw--table_responsive table-performances\">\n<thead>\n<tr>\n<th></th>\n<th>Fonds <span class=\"currency\" style=\"background-color: #c8a4d4;\">USD</span></th>\n<th>Fonds <span class=\"currency\">EUR</span></th>\n<th>Sektor <span class=\"currency\">EUR</span></th>\n</tr>\n</thead>\n"]
["iShares MSCI World UCITS ETF (Dist)","A0HGV0","IE00B0M62Q58","\n<tr><td>laufendes&nbsp;Jahr</td><td><span class=\"fw--table-cell_green\">+9,07%</span></td><td><span class=\"fw--table-cell_green\">+10,47%</span></td><td><span class=\"fw--table-cell_green\">+9,75%</span></td></tr><tr><td>1&nbsp;Jahr</td><td><span class=\"fw--table-cell_green\">+0,40%</span></td><td><span class=\"fw--table-cell_green\">+9,52%</span></td><td><span class=\"fw--table-cell_green\">+4,68%</span></td></tr><tr><td>3&nbsp;Jahre</td><td><span class=\"fw--table-cell_green\">+45,79%</span></td><td><span class=\"fw--table-cell_green\">+45,41%</span></td><td><span class=\"fw--table-cell_green\">+35,17%</span></td></tr><tr><td>5&nbsp;Jahre</td><td><span class=\"fw--table-cell_green\">+36,84%</span></td><td><span class=\"fw--table-cell_green\">+65,53%</span></td><td><span class=\"fw--table-cell_green\">+45,35%</span></td></tr><tr><td>10&nbsp;Jahre</td><td><span class=\"fw--table-cell_green\">+191,76%</span></td><td><span class=\"fw--table-cell_green\">+230,93%</span></td><td><span class=\"fw--table-cell_green\">+165,02%</span></td></tr> </tbody>\n</table>\n</div>\n</div>\n<div class=\"col-12 col-lg\">\n<h3 class=\"fw--h2 text-color_lightblue01\">Annualisiert</h3>\n<div class=\"fw--table-wrapper f-table-overflow\">\n<table class=\"fw--table fw--table_responsive js-fw--table_responsive table-performances\">\n<thead>\n<tr>\n<th></th>\n<th>Fonds <span class=\"currency\" style=\"background-color: #c8a4d4;\">USD</span></th>\n<th>Fonds <span class=\"currency\">EUR</span></th>\n<th>Sektor <span class=\"currency\">EUR</span></th>\n</tr>\n</thead>\n"]
["Flossbach v. Storch SICAV - Multiple Opp. R","A0M430","LU0323578657",{"$f":"fwPerfString(C13)","v":"\n<tr><td>laufendes&nbsp;Jahr</td><td><span class=\"fw--table-cell_green\">+6,44%</span></td><td><span class=\"fw--table-cell_green\">+5,00%</span></td></tr><tr><td>1&nbsp;Jahr</td><td><span class=\"fw--table-cell_green\">+3,74%</span></td><td><span class=\"fw--table-cell_red\">-1,45%</span></td></tr><tr><td>3&nbsp;Jahre</td><td><span class=\"fw--table-cell_green\">+20,89%</span></td><td><span class=\"fw--table-cell_green\">+13,48%</span></td></tr><tr><td>5&nbsp;Jahre</td><td><span class=\"fw--table-cell_green\">+37,60%</span></td><td><span class=\"fw--table-cell_green\">+14,44%</span></td></tr><tr><td>10&nbsp;Jahre</td><td><span class=\"fw--table-cell_green\">+191,48%</span></td><td><span class=\"fw--table-cell_green\">+63,57%</span></td></tr> </tbody>\n</table>\n</div>\n</div>\n<div class=\"col-12 col-lg\">\n<h3 class=\"fw--h2 text-color_lightblue01\">Annualisiert</h3>\n<div class=\"fw--table-wrapper f-table-overflow\">\n<table class=\"fw--table fw--table_responsive js-fw--table_responsive table-performances\">\n<thead>\n<tr>\n<th></th>\n<th>Fonds in EUR</th>\n<th>Sektor in EUR</th>\n</tr>\n</thead>\n"}]
["Frankfurter Aktienfonds für Stiftungen T","A0M8HD","DE000A0M8HD2",{"$f":"fwPerfString(C14)","v":"\n<tr><td>laufendes&nbsp;Jahr</td><td><span class=\"fw--table-cell_green\">+1,19%</span></td><td><span class=\"fw--table-cell_green\">+3,52%</span></td></tr><tr><td>1&nbsp;Jahr</td><td><span class=\"fw--table-cell_red\">-10,53%</span></td><td><span class=\"fw--table-cell_red\">-4,57%</span></td></tr><tr><td>3&nbsp;Jahre</td><td><span class=\"fw--table-cell_green\">+12,59%</span></td><td><span class=\"fw--table-cell_green\">+7,68%</span></td></tr><tr><td>5&nbsp;Jahre</td><td><span class=\"fw--table-cell_green\">+23,95%</span></td><td><span class=\"fw--table-cell_green\">+6,31%</span></td></tr><tr><td>10&nbsp;Jahre</td><td><span class=\"fw--table-cell_green\">+240,90%</span></td><td><span class=\"fw--table-cell_green\">+89,44%</span></td></tr> </tbody>\n</table>\n</div>\n</div>\n<div class=\"col-12 col-lg\">\n<h3 class=\"fw--h2 text-color_lightblue01\">Annualisiert</h3>\n<div class=\"fw--table-wrapper f-table-overflow\">\n<table class=\"fw--table fw--table_responsive js-fw--table_responsive table-performances\">\n<thead>\n<tr>\n<th></th>\n<th>Fonds in EUR</th>\n<th>Sektor in EUR</th>\n</tr>\n</thead>\n"}]
["Carmignac Investissement A EUR acc","A0DP5W","FR0010148981",{"$f":"fwPerfString(C15)","v":"\n<tr><td>laufendes&nbsp;Jahr</td><td><span class=\"fw--table-cell_green\">+10,91%</span></td><td><span class=\"fw--table-cell_green\">+6,85%</span></td></tr><tr><td>1&nbsp;Jahr</td><td><span class=\"fw--table-cell_red\">-4,04%</span></td><td><span class=\"fw--table-cell_red\">-0,32%</span></td></tr><tr><td>3&nbsp;Jahre</td><td><span class=\"fw--table-cell_green\">+12,45%</span></td><td><span class=\"fw--table-cell_green\">+17,27%</span></td></tr><tr><td>5&nbsp;Jahre</td><td><span class=\"fw--table-cell_green\">+17,24%</span></td><td><span class=\"fw--table-cell_green\">+23,07%</span></td></tr><tr><td>10&nbsp;Jahre</td><td><span class=\"fw--table-cell_green\">+97,93%</span></td><td><span class=\"fw--table-cell_green\">+79,12%</span></td></tr><tr><td>15&nbsp;Jahre</td><td><span class=\"fw--table-cell_green\">+179,09%</span></td><td><span class=\"fw--table-cell_green\">+70,52%</span></td></tr><tr><td>20&nbsp;Jahre</td><td><span class=\"fw--table-cell_green\">+453,31%</span></td><td><span class=\"fw--table-cell_green\">+259,54%</span></td></tr> </tbody>\n</table>\n</div>\n</div>\n<div class=\"col-12 col-lg\">\n<h3 class=\"fw--h2 text-color_lightblue01\">Annualisiert</h3>\n<div class=\"fw--table-wrapper f-table-overflow\">\n<table class=\"fw--table fw--table_responsive js-fw--table_responsive table-performances\">\n<thead>\n<tr>\n<th></th>\n<th>Fonds in EUR</th>\n<th>Sektor in EUR</th>\n</tr>\n</thead>\n"}]